[Event "XX Gran Hotel Bali-A 2023"]
[Site "Benidorm"]
[Date "2023.12.07"]
[Round "8.1"]
[White "Ilinca, Felix-Antonio"]
[Black "Grigoryan, Karen H."]
[Result "*"]
[ECO "B90"]
[WhiteElo "2395"]
[BlackElo "2646"]
[Annotator "TA"]
[PlyCount "46"]
[EventDate "2023.12.02"]
[EventType "swiss"]
[EventCountry "ESP"]
[SourceTitle "playchess.com"]
[Source "ChessBase"]
[SourceQuality "1"]
[TimeControl "5400+30"]

{[%evp 11,46,-16,0,16,19,20,28,19,30,16,57,62,53,56,58,50,53,60,75,48,60,6,27,10,18,9,53,0,0,11,49,71,58,0,0,0,25]} 1. e4 {[%emt 1:31:00]} c5 {[%emt 0:06:03]} 2. Nf3 {[%emt 0:00:30]} d6 {[%emt 0:00:22]} 3. d4 {[%emt 0:00:22]} cxd4 {[%emt 0:00:09]} 4. Nxd4 {[%emt 0:00:24]} Nf6 {[%emt 1:25:56]} 5. Nc3 {[%emt 0:00:19]} a6 {[%emt 0:00:12]} 6. Rg1 {[%emt 0:01:50]} e5 {[%emt 0:00:48]} 7. Nb3 {[%emt 0:00:28] B90: Sicilian Najdorf: Unusual White 6th moves, 6 Be3 Ng4 and 6 Be3 e5.} h5 {[%emt 0:00:09][%cal Bh7h5,Bh5h4][%mdl 32]} 8. h3 {[%emt 0:01:29]} h4 {[%emt 0:00:56]} 9. Be3 {[%emt 0:02:58] White has an edge.} Be7 {[%emt 0:00:37]} 10. Qf3 {[%emt 1:27:00]} Be6 {[%emt 0:00:53]} 11. O-O-O {[%emt 0:01:44]} Nbd7 {[%emt 0:00:40]} 12. g4 {[%emt 0:07:53]} hxg3 {[%emt 0:01:16]} 13. fxg3 {[%emt 0:02:47] [#]} Rc8 $146 {[%emt 0:01:06][%cal Oc8c3]} ({Predecessor:} 13... g6 14. g4 Rc8 15. Kb1 Qc7 16. Bd3 Rh7 17. Bf2 Nb6 18. h4 Nc4 19. Bxc4 Qxc4 {1-0 Dyulgerov,V (1863)-Irimia,I (2072) Albena Vivacom op 2015 (3)}) 14. Nd5 {[%emt 0:04:13]} Bxd5 {[%emt 0:02:20][%mdl 64] [#] Remove Defender} (14... Bxh3 $2 15. Rh1 $18) (14... Nxd5 $2 15. exd5 Qc7 16. c3 $18) 15. exd5 {[%emt 0:00:08]} Qc7 {[%emt 0:08:11][%csl Gc8][%cal Rc7c2]} 16. Bd3 {[%emt 0:12:57] Active counter play!} (16. c3 $14) 16... a5 $11 {[%emt 0:05:57] aiming for ...a4.} 17. Nd2 {[%emt 0:04:30]} a4 $1 {[%emt 0:02:45] Hoping for ...a3.} 18. a3 {[%emt 0:01:58]} b5 $1 {[%emt 0:01:29]} 19. Kb1 {[%emt 0:03:04] Black must now prevent g4.} (19. Bxb5 $2 Qxc2#) (19. g4 {looks sharper.} b4 20. axb4 a3 21. bxa3 e4 22. Nxe4 Ne5 23. Nxf6+ Bxf6 24. Qe4) 19... b4 $1 {[%emt 0:03:03]} 20. axb4 {[%emt 0:03:27] Strongly threatening g4. Black is weak on the light squares} Rb8 {[%emt 0:09:02]} 21. c3 {[%emt 0:09:49]} a3 {[%emt 0:01:50]} 22. Rc1 {[%emt 0:03:27] With the idea b3.} (22. bxa3 $2 {is the wrong capture.} Qxc3 23. Nc4 e4 $19) 22... axb2 {[%emt 0:01:22]} 23. Kxb2 {[%emt 0:01:22]} O-O {[%emt 0:14:38] Weighted Error Value: White=0.16 (very precise) /Black=0.07 (flawless)} *

[Event "XX Gran Hotel Bali-A 2023"]
[Site "Benidorm"]
[Date "2023.12.07"]
[Round "8.2"]
[White "Zanan, Evgeny"]
[Black "Solodovnichenko, Yuri"]
[Result "*"]
[ECO "B22"]
[WhiteElo "2486"]
[BlackElo "2490"]
[Annotator "RC"]
[PlyCount "44"]
[EventDate "2023.12.02"]
[EventType "swiss"]
[EventCountry "ESP"]
[SourceTitle "playchess.com"]
[Source "ChessBase"]
[SourceQuality "1"]
[TimeControl "5400+30"]

1. e4 {[%emt 0:06:14]} c5 {[%emt 1:31:00]} 2. c3 {[%emt 0:00:08]} Nf6 {[%emt 0:02:13]} 3. e5 {[%emt 0:03:43]} Nd5 {[%emt 0:00:06]} 4. Nf3 {[%emt 0:00:04]} d6 {[%emt 0:00:12]} 5. Bb5+ {[%emt 0:00:05]} Bd7 {[%emt 0:00:37]} 6. Bc4 {[%emt 0:00:05]} e6 {[%emt 0:00:13]} 7. d4 {[%emt 0:00:20]} cxd4 {[%emt 0:01:26]} 8. Bxd5 {[%emt 0:00:13]} exd5 {[%emt 0:00:05]} 9. O-O {[%emt 0:00:04]} dxe5 {[%emt 0:07:27]} 10. Nxe5 {[%emt 0:00:44]} Nc6 {[%emt 0:00:07]} 11. Qh5 {[%emt 0:00:31]} Nxe5 {[%emt 0:05:15]} 12. Qxe5+ {[%emt 0:00:38]} Be6 {[%emt 0:04:03]} 13. Qxd4 {[%emt 0:01:39]} Qc7 {[%emt 0:07:54]} 14. Bf4 {[%emt 0:09:23]} Qc4 {[%emt 0:00:00]} 15. Qe3 {[%emt 0:05:48]} Qe4 {[%emt 0:00:00]} 16. Nd2 {[%emt 0:07:05]} Qxe3 {[%emt 0:00:00]} 17. Bxe3 {[%emt 0:00:06]} Bd6 {[%emt 0:00:00]} 18. Nb3 {[%emt 0:01:55]} Kd7 {[%emt 0:00:00]} 19. Rad1 {[%emt 0:02:00]} Rhc8 {[%emt 0:00:00]} 20. Nd4 {[%emt 0:02:09]} Bc5 {[%emt 0:00:00]} 21. Nc2 {[%emt 0:06:01]} b6 {[%emt 0:04:00]} 22. Rd2 {[%emt 0:16:59]} Kc6 {[%emt 0:00:00]} *

[Event "XX Gran Hotel Bali-A 2023"]
[Site "Benidorm"]
[Date "2023.12.07"]
[Round "8.3"]
[White "Mitrabha, Guha"]
[Black "Ambartsumian, Tyhran"]
[Result "*"]
[ECO "D45"]
[WhiteElo "2516"]
[BlackElo "2138"]
[Annotator "RC"]
[PlyCount "46"]
[EventDate "2023.12.02"]
[EventType "swiss"]
[EventCountry "ESP"]
[SourceTitle "playchess.com"]
[Source "ChessBase"]
[SourceQuality "1"]
[TimeControl "5400+30"]

1. Nf3 {[%emt 0:10:06]} Nf6 {[%emt 0:00:15]} 2. c4 {[%emt 1:21:24]} c6 {[%emt 0:00:07]} 3. Nc3 {[%emt 0:00:11]} d5 {[%emt 0:00:00]} 4. e3 {[%emt 0:00:08]} Nbd7 {[%emt 0:00:00]} 5. d4 {[%emt 0:01:03]} e6 {[%emt 0:00:00]} 6. Be2 {[%emt 0:00:46]} Bd6 {[%emt 0:00:00]} 7. O-O {[%emt 0:00:09]} O-O {[%emt 0:02:30]} 8. b3 {[%emt 0:00:06]} b6 {[%emt 0:00:00]} 9. Bb2 {[%emt 0:00:09]} Bb7 {[%emt 0:00:00]} 10. Qc2 {[%emt 0:00:49]} Rc8 {[%emt 0:04:00]} 11. Rfd1 {[%emt 0:00:25]} Qe7 {[%emt 0:00:00]} 12. a4 {[%emt 0:00:09]} a5 {[%emt 0:00:00]} 13. Rac1 {[%emt 0:00:23]} Rfd8 {[%emt 0:00:00]} 14. Bd3 {[%emt 1:22:53]} h6 {[%emt 0:00:00]} 15. Qe2 {[%emt 0:01:34]} Ba8 {[%emt 0:06:30]} 16. h3 {[%emt 0:01:42]} c5 {[%emt 0:00:00]} 17. cxd5 {[%emt 0:01:56]} Nxd5 {[%emt 0:00:00]} 18. Ne4 {[%emt 0:02:41]} cxd4 {[%emt 0:00:00]} 19. Nxd6 {[%emt 0:02:21]} Rxc1 {[%emt 0:00:00]} 20. Rxc1 {[%emt 0:00:07]} Qxd6 {[%emt 0:00:00]} 21. Nxd4 {[%emt 0:03:15]} Nc5 {[%emt 0:00:00]} 22. Bc4 {[%emt 0:00:22]} Nf6 {[%emt 0:00:00]} 23. Nb5 {[%emt 0:02:28]} Qe7 {[%emt 0:00:00]} *

[Event "XX Gran Hotel Bali-A 2023"]
[Site "Benidorm"]
[Date "2023.12.07"]
[Round "8.4"]
[White "Utsab Chatterjee"]
[Black "Domingo Nunez, Ruben"]
[Result "*"]
[ECO "B03"]
[WhiteElo "2302"]
[BlackElo "2429"]
[Annotator "RC"]
[PlyCount "41"]
[EventDate "2023.12.02"]
[EventType "swiss"]
[EventCountry "ESP"]
[SourceTitle "playchess.com"]
[Source "ChessBase"]
[SourceQuality "1"]
[TimeControl "5400+30"]

1. e4 {[%emt 0:03:06]} Nf6 {[%emt 0:00:07]} 2. e5 {[%emt 1:28:24]} Nd5 {[%emt 0:00:04]} 3. d4 {[%emt 0:00:17]} d6 {[%emt 0:00:03]} 4. c4 {[%emt 0:00:13]} Nb6 {[%emt 0:00:03]} 5. exd6 {[%emt 0:00:15]} cxd6 {[%emt 0:00:04]} 6. Nc3 {[%emt 0:00:15]} g6 {[%emt 0:00:04]} 7. Be3 {[%emt 0:00:20]} Bg7 {[%emt 0:00:02]} 8. Rc1 {[%emt 0:00:07]} O-O {[%emt 0:00:05]} 9. b3 {[%emt 0:00:08]} d5 {[%emt 0:00:03]} 10. c5 {[%emt 0:00:43]} Nc6 {[%emt 0:00:03]} 11. cxb6 {[%emt 0:13:37]} e5 {[%emt 0:00:15]} 12. Nge2 {[%emt 0:11:04]} exd4 {[%emt 0:00:13]} 13. Nxd4 {[%emt 0:02:52]} Bxd4 {[%emt 0:00:05]} 14. Bxd4 {[%emt 0:00:08]} Qh4 {[%emt 0:00:03]} 15. Bc5 {[%emt 0:01:25]} Re8+ {[%emt 0:00:06]} 16. Be2 {[%emt 0:00:13]} axb6 {[%emt 0:01:16]} 17. Bxb6 {[%emt 0:15:19]} d4 {[%emt 0:00:44]} 18. O-O {[%emt 0:00:10]} dxc3 {[%emt 0:00:03]} 19. Bc4 {[%emt 0:00:24]} Qf6 {[%emt 0:07:31]} 20. b4 {[%emt 0:15:15]} Bf5 {[%emt 1:29:36]} 21. Bb3 {[%emt 0:12:10]} *

[Event "XX Gran Hotel Bali-A 2023"]
[Site "Benidorm"]
[Date "2023.12.07"]
[Round "8.5"]
[White "Iglesias Ferreira, Andres"]
[Black "Campora, Daniel H."]
[Result "*"]
[ECO "C95"]
[WhiteElo "2187"]
[BlackElo "2341"]
[Annotator "RC"]
[PlyCount "45"]
[EventDate "2023.12.02"]
[EventType "swiss"]
[EventCountry "ESP"]
[SourceTitle "playchess.com"]
[Source "ChessBase"]
[SourceQuality "1"]
[TimeControl "5400+30"]

1. e4 {[%emt 0:04:19]} e5 {[%emt 1:31:00]} 2. Nf3 {[%emt 0:00:08]} Nc6 {[%emt 0:00:07]} 3. Bb5 {[%emt 0:00:35]} a6 {[%emt 0:00:33]} 4. Ba4 {[%emt 0:01:04]} Nf6 {[%emt 0:00:17]} 5. O-O {[%emt 0:00:21]} Be7 {[%emt 0:00:18]} 6. Re1 {[%emt 0:01:45]} b5 {[%emt 0:00:22]} 7. Bb3 {[%emt 0:00:09]} d6 {[%emt 0:00:15]} 8. c3 {[%emt 0:00:22]} O-O {[%emt 0:00:43]} 9. h3 {[%emt 0:00:52]} Nb8 {[%emt 0:00:30]} 10. d4 {[%emt 0:00:35]} Nbd7 {[%emt 0:00:39]} 11. c4 {[%emt 0:00:16]} Bb7 {[%emt 0:05:00]} 12. Nc3 {[%emt 0:00:31]} c6 {[%emt 0:13:48]} 13. a3 {[%emt 0:01:26]} Qc7 {[%emt 0:02:11]} 14. Qc2 {[%emt 0:00:33]} Rac8 {[%emt 0:04:05]} 15. Be3 {[%emt 0:06:13]} exd4 {[%emt 0:09:49]} 16. Nxd4 {[%emt 0:01:28]} g6 {[%emt 0:06:06]} 17. Rac1 {[%emt 0:07:05]} Qd8 {[%emt 0:06:20]} 18. Rcd1 {[%emt 0:05:02]} Re8 {[%emt 0:02:33]} 19. Bf4 {[%emt 0:14:47]} bxc4 {[%emt 0:05:09]} 20. Bxc4 {[%emt 0:00:09]} d5 {[%emt 0:00:15]} 21. exd5 {[%emt 0:04:07]} cxd5 {[%emt 0:00:07]} 22. Ba2 {[%emt 0:01:18]} Nc5 {[%emt 0:05:54]} 23. Qb1 {[%emt 0:11:19]} *

[Event "XX Gran Hotel Bali-A 2023"]
[Site "Benidorm"]
[Date "2023.12.07"]
[Round "8.6"]
[White "Mingarro Carceller, Sergi"]
[Black "Goluch, Piotr"]
[Result "*"]
[ECO "B12"]
[WhiteElo "2253"]
[BlackElo "2309"]
[Annotator "RC"]
[PlyCount "41"]
[EventDate "2023.12.02"]
[EventType "swiss"]
[EventCountry "ESP"]
[SourceTitle "playchess.com"]
[Source "ChessBase"]
[SourceQuality "1"]
[TimeControl "5400+30"]

1. e4 {[%emt 0:01:06]} c6 {[%emt 0:00:04]} 2. d4 {[%emt 0:00:08]} d5 {[%emt 0:00:05]} 3. e5 {[%emt 0:00:27]} c5 {[%emt 0:00:04]} 4. Nf3 {[%emt 1:30:49]} Nc6 {[%emt 0:00:46]} 5. dxc5 {[%emt 0:00:14]} Bg4 {[%emt 0:01:01]} 6. c3 {[%emt 0:00:37]} e6 {[%emt 0:07:58]} 7. Be3 {[%emt 0:02:32]} Nge7 {[%emt 0:02:34]} 8. Nbd2 {[%emt 0:02:59]} Nf5 {[%emt 0:00:00]} 9. Bd4 {[%emt 0:00:55]} Be7 {[%emt 0:01:00]} 10. h3 {[%emt 0:03:49]} Bxf3 {[%emt 0:00:00]} 11. Nxf3 {[%emt 0:00:14]} O-O {[%emt 0:00:00]} 12. Qa4 {[%emt 1:23:21]} f6 {[%emt 0:00:00]} 13. exf6 {[%emt 0:19:14]} Bxf6 {[%emt 0:00:00]} 14. Bd3 {[%emt 0:15:53]} Bxd4 {[%emt 0:00:00]} 15. cxd4 {[%emt 0:03:53]} Nh4 {[%emt 0:00:00]} 16. Nxh4 {[%emt 0:04:53]} Qxh4 {[%emt 0:00:00]} 17. O-O-O {[%emt 0:37:15]} Rxf2 {[%emt 0:00:00]} 18. g4 {[%emt 0:02:20]} Raf8 {[%emt 0:00:00]} 19. Bb5 {[%emt 0:03:46]} Rg2 {[%emt 0:00:00]} 20. Rhf1 {[%emt 0:04:08]} Rxf1 {[%emt 0:00:00]} 21. Bxf1 {[%emt 0:00:50]} *

[Event "XX Gran Hotel Bali-A 2023"]
[Site "Benidorm"]
[Date "2023.12.07"]
[Round "8.7"]
[White "Moskalenko, Viktor"]
[Black "Ereza Vizcarra, Fernando"]
[Result "*"]
[ECO "A42"]
[WhiteElo "2427"]
[BlackElo "2116"]
[Annotator "RC"]
[PlyCount "32"]
[EventDate "2023.12.02"]
[EventType "swiss"]
[EventCountry "ESP"]
[SourceTitle "playchess.com"]
[Source "ChessBase"]
[SourceQuality "1"]
[TimeControl "5400+30"]

1. d4 {[%emt 0:00:17]} d6 {[%emt 1:31:00]} 2. Nf3 {[%emt 1:31:13]} Nd7 {[%emt 0:02:14]} 3. c4 {[%emt 0:00:20]} e5 {[%emt 0:00:09]} 4. Nc3 {[%emt 0:00:07]} g6 {[%emt 0:05:10]} 5. e4 {[%emt 0:00:43]} Bg7 {[%emt 0:00:04]} 6. g3 {[%emt 0:00:48]} Ne7 {[%emt 0:02:55]} 7. Bg2 {[%emt 0:00:16]} O-O {[%emt 0:02:19]} 8. O-O {[%emt 0:00:20]} exd4 {[%emt 0:13:12]} 9. Nxd4 {[%emt 0:01:42]} Ne5 {[%emt 0:00:03]} 10. b3 {[%emt 0:03:09]} N7c6 {[%emt 0:00:13]} 11. Nxc6 {[%emt 0:07:30]} Nxc6 {[%emt 0:06:46]} 12. Bb2 {[%emt 0:04:08]} Nd4 {[%emt 0:05:35]} 13. Rb1 {[%emt 0:14:48]} Bd7 {[%emt 0:11:25]} 14. Nd5 {[%emt 1:02:18]} c5 {[%emt 0:08:58]} 15. Ne3 {[%emt 0:01:54]} Bc6 {[%emt 0:05:04]} 16. Nc2 {[%emt 0:00:34]} Nxc2 {[%emt 0:01:11]} *

[Event "XX Gran Hotel Bali-A 2023"]
[Site "Benidorm"]
[Date "2023.12.07"]
[Round "8.8"]
[White "De La Puerta Cresis, Javier"]
[Black "Korneev Leskova, Svyatoslav"]
[Result "*"]
[ECO "C02"]
[WhiteElo "2181"]
[BlackElo "2252"]
[Annotator "RC"]
[PlyCount "49"]
[EventDate "2023.12.02"]
[EventType "swiss"]
[EventCountry "ESP"]
[SourceTitle "playchess.com"]
[Source "ChessBase"]
[SourceQuality "1"]
[TimeControl "5400+30"]

1. e4 {[%emt 0:00:03]} e6 {[%emt 0:00:06]} 2. d4 {[%emt 1:31:27]} d5 {[%emt 0:00:05]} 3. e5 {[%emt 0:00:04]} c5 {[%emt 0:00:06]} 4. c3 {[%emt 0:00:07]} Nc6 {[%emt 0:00:10]} 5. Nf3 {[%emt 0:00:06]} Bd7 {[%emt 1:32:33]} 6. Be2 {[%emt 0:00:11]} f6 {[%emt 0:05:32]} 7. O-O {[%emt 0:00:37]} fxe5 {[%emt 0:01:43]} 8. dxe5 {[%emt 0:00:16]} Qc7 {[%emt 0:00:31]} 9. Re1 {[%emt 0:00:37]} Nh6 {[%emt 1:26:06]} 10. c4 {[%emt 0:02:36]} d4 {[%emt 0:04:21]} 11. Bd3 {[%emt 0:01:16]} O-O-O {[%emt 0:03:09]} 12. Bg5 {[%emt 0:09:32]} Re8 {[%emt 0:01:46]} 13. Bxh6 {[%emt 0:00:31]} gxh6 {[%emt 0:00:05]} 14. Nbd2 {[%emt 0:00:15]} Bg7 {[%emt 0:07:49]} 15. Qe2 {[%emt 0:01:48]} Ref8 {[%emt 0:13:07]} 16. a3 {[%emt 0:11:24]} a5 {[%emt 0:05:17]} 17. b4 {[%emt 0:03:52]} cxb4 {[%emt 0:00:15]} 18. axb4 {[%emt 0:05:45]} Nxb4 {[%emt 0:00:06]} 19. Nb3 {[%emt 0:04:19]} Nxd3 {[%emt 0:06:22]} 20. Qxd3 {[%emt 0:04:19]} a4 {[%emt 0:09:58]} 21. Nbxd4 {[%emt 0:01:34]} Rd8 {[%emt 0:00:07]} 22. Qe3 {[%emt 0:03:45]} Bf8 {[%emt 0:00:22]} 23. Nb5 {[%emt 0:48:59]} Bxb5 {[%emt 0:06:13]} 24. cxb5 {[%emt 0:00:15]} Qa5 {[%emt 0:00:14]} 25. Nd4 {[%emt 0:07:08]} *

[Event "XX Gran Hotel Bali-A 2023"]
[Site "Benidorm"]
[Date "2023.12.07"]
[Round "8.9"]
[White "Aakash Sharadchandra, Dalvi"]
[Black "Munoz Avila, Jose Luis"]
[Result "*"]
[ECO "D16"]
[WhiteElo "2114"]
[BlackElo "2238"]
[Annotator "RC"]
[PlyCount "46"]
[EventDate "2023.12.02"]
[EventType "swiss"]
[EventCountry "ESP"]
[SourceTitle "playchess.com"]
[Source "ChessBase"]
[SourceQuality "1"]
[TimeControl "5400+30"]

1. d4 {[%emt 1:31:00]} d5 {[%emt 0:00:02]} 2. c4 {[%emt 0:00:07]} c6 {[%emt 0:00:09]} 3. Nf3 {[%emt 0:00:05]} Nf6 {[%emt 0:00:05]} 4. Nc3 {[%emt 0:00:04]} dxc4 {[%emt 0:01:19]} 5. a4 {[%emt 0:00:05]} e6 {[%emt 0:00:15]} 6. e3 {[%emt 0:00:13]} c5 {[%emt 0:00:13]} 7. Bxc4 {[%emt 0:00:07]} Nc6 {[%emt 1:31:57]} 8. O-O {[%emt 0:00:06]} Be7 {[%emt 0:00:22]} 9. Qe2 {[%emt 0:00:06]} cxd4 {[%emt 0:00:09]} 10. exd4 {[%emt 0:00:16]} O-O {[%emt 0:00:57]} 11. Rd1 {[%emt 0:00:04]} Nb4 {[%emt 0:00:07]} 12. Bg5 {[%emt 0:00:07]} h6 {[%emt 0:00:37]} 13. Bh4 {[%emt 0:00:44]} Bd7 {[%emt 0:00:27]} 14. Ne5 {[%emt 0:02:16]} Rc8 {[%emt 1:32:42]} 15. Rac1 {[%emt 0:03:40]} Bc6 {[%emt 0:04:38]} 16. h3 {[%emt 0:13:44]} Bd5 {[%emt 0:13:23]} 17. Nxd5 {[%emt 1:12:09]} Nfxd5 {[%emt 0:06:35]} 18. Bg3 {[%emt 0:01:44]} Bg5 {[%emt 0:03:52]} 19. Ra1 {[%emt 0:00:48]} Qe7 {[%emt 0:00:41]} 20. a5 {[%emt 0:05:02]} Rfd8 {[%emt 0:09:13]} 21. Ra3 {[%emt 0:02:08]} Bf6 {[%emt 0:03:30]} 22. Rf3 {[%emt 0:11:25]} Nc6 {[%emt 0:05:49]} 23. a6 {[%emt 0:06:19]} b6 {[%emt 0:08:15]} *

[Event "XX Gran Hotel Bali-A 2023"]
[Site "Benidorm"]
[Date "2023.12.07"]
[Round "8.10"]
[White "Gaurav Rajesh Zagade"]
[Black "Grabuzova, Tatiana"]
[Result "1/2-1/2"]
[ECO "D10"]
[WhiteElo "2099"]
[BlackElo "2202"]
[Annotator "RC"]
[PlyCount "35"]
[EventDate "2023.12.02"]
[EventType "swiss"]
[EventCountry "ESP"]
[SourceTitle "playchess.com"]
[Source "ChessBase"]
[SourceQuality "1"]
[TimeControl "5400+30"]

1. d4 {[%emt 0:00:03]} d5 {[%emt 0:00:07]} 2. c4 {[%emt 0:00:09]} c6 {[%emt 0:00:05]} 3. Nc3 {[%emt 0:00:11]} Nf6 {[%emt 0:00:12]} 4. e3 {[%emt 0:00:14]} Bf5 {[%emt 0:02:28]} 5. Qb3 {[%emt 0:02:27]} Qb6 {[%emt 0:00:58]} 6. Qxb6 {[%emt 0:04:48]} axb6 {[%emt 0:00:17]} 7. cxd5 {[%emt 0:00:33]} Nxd5 {[%emt 0:00:07]} 8. Nxd5 {[%emt 0:00:26]} cxd5 {[%emt 0:00:07]} 9. Bd2 {[%emt 0:03:08]} Nc6 {[%emt 0:00:37]} 10. Bb5 {[%emt 0:02:10]} e6 {[%emt 0:01:33]} 11. Ne2 {[%emt 0:02:50]} Bd6 {[%emt 0:03:58]} 12. Nc3 {[%emt 0:12:39]} Ke7 {[%emt 0:09:32]} 13. Ke2 {[%emt 0:04:09]} Rhc8 {[%emt 0:12:41]} 14. h3 {[%emt 0:09:41]} Bc2 {[%emt 0:20:34]} 15. Rhc1 {[%emt 0:06:27]} Na7 {[%emt 0:04:11]} 16. Bd3 {[%emt 0:09:20]} Bxd3+ {[%emt 0:00:14]} 17. Kxd3 {[%emt 0:00:05]} Nc6 {[%emt 0:07:41]} 18. Nb5 {[%emt 0:02:40]} 1/2-1/2

[Event "XX Gran Hotel Bali-A 2023"]
[Site "Benidorm"]
[Date "2023.12.07"]
[Round "8.11"]
[White "Salvador Buiza, Victor"]
[Black "Vignesh B"]
[Result "*"]
[ECO "B06"]
[WhiteElo "2112"]
[BlackElo "2140"]
[Annotator "RC"]
[PlyCount "45"]
[EventDate "2023.12.02"]
[EventType "swiss"]
[EventCountry "ESP"]
[SourceTitle "playchess.com"]
[Source "ChessBase"]
[SourceQuality "1"]
[TimeControl "5400+30"]

1. e4 {[%emt 0:00:14]} g6 {[%emt 1:31:00]} 2. d4 {[%emt 0:00:07]} Bg7 {[%emt 0:00:00]} 3. Nc3 {[%emt 0:00:04]} d6 {[%emt 0:00:00]} 4. Be3 {[%emt 0:00:04]} a6 {[%emt 0:00:00]} 5. Qd2 {[%emt 0:00:04]} b5 {[%emt 0:00:00]} 6. O-O-O {[%emt 0:00:06]} b4 {[%emt 0:00:00]} 7. Nce2 {[%emt 0:02:10]} a5 {[%emt 0:00:00]} 8. h4 {[%emt 0:01:17]} Nf6 {[%emt 0:00:00]} 9. f3 {[%emt 0:00:16]} Ba6 {[%emt 0:00:00]} 10. Nh3 {[%emt 0:02:03]} Nbd7 {[%emt 0:00:00]} 11. Bh6 {[%emt 0:04:44]} Bxh6 {[%emt 0:00:00]} 12. Qxh6 {[%emt 0:00:07]} e5 {[%emt 0:00:00]} 13. dxe5 {[%emt 0:06:34]} dxe5 {[%emt 0:00:00]} 14. h5 {[%emt 0:13:48]} Qe7 {[%emt 0:00:00]} 15. hxg6 {[%emt 0:02:02]} fxg6 {[%emt 0:00:00]} 16. Qe3 {[%emt 0:09:59]} Nb6 {[%emt 0:07:30]} 17. Ng3 {[%emt 0:03:27]} Bxf1 {[%emt 0:00:00]} 18. Rhxf1 {[%emt 0:01:44]} a4 {[%emt 0:00:00]} 19. f4 {[%emt 0:02:35]} exf4 {[%emt 0:00:00]} 20. Nxf4 {[%emt 0:01:34]} O-O {[%emt 0:00:00]} 21. Nd3 {[%emt 0:07:00]} a3 {[%emt 0:00:00]} 22. Qc5 {[%emt 0:08:54]} axb2+ {[%emt 0:10:30]} 23. Kb1 {[%emt 0:00:13]} *

[Event "XX Gran Hotel Bali-A 2023"]
[Site "Benidorm"]
[Date "2023.12.07"]
[Round "8.12"]
[White "Decuigniere, Tom"]
[Black "Garcia Molina, Jose"]
[Result "*"]
[ECO "E47"]
[WhiteElo "2408"]
[BlackElo "2212"]
[Annotator "RC"]
[PlyCount "40"]
[EventDate "2023.12.02"]
[EventType "swiss"]
[EventCountry "ESP"]
[SourceTitle "playchess.com"]
[Source "ChessBase"]
[SourceQuality "1"]
[TimeControl "5400+30"]

1. d4 {[%emt 0:00:03]} Nf6 {[%emt 0:01:03]} 2. c4 {[%emt 0:00:04]} e6 {[%emt 0:00:13]} 3. Nc3 {[%emt 0:00:18]} Bb4 {[%emt 0:00:09]} 4. e3 {[%emt 0:00:21]} O-O {[%emt 0:00:47]} 5. Bd3 {[%emt 1:32:14]} b6 {[%emt 0:00:30]} 6. e4 {[%emt 0:01:53]} d6 {[%emt 0:07:27]} 7. Nge2 {[%emt 0:03:24]} e5 {[%emt 0:10:10]} 8. d5 {[%emt 0:01:56]} Nbd7 {[%emt 0:11:25]} 9. O-O {[%emt 0:04:07]} Bxc3 {[%emt 0:01:29]} 10. Nxc3 {[%emt 0:00:12]} Re8 {[%emt 0:00:11]} 11. Bd2 {[%emt 0:05:50]} h6 {[%emt 0:03:39]} 12. b4 {[%emt 0:02:13]} Nf8 {[%emt 0:03:14]} 13. a4 {[%emt 0:07:47]} g5 {[%emt 0:07:31]} 14. a5 {[%emt 0:03:16]} Bd7 {[%emt 0:00:37]} 15. axb6 {[%emt 0:07:07]} axb6 {[%emt 0:00:20]} 16. Qc2 {[%emt 0:00:44]} Ng6 {[%emt 0:07:48]} 17. Rfc1 {[%emt 0:08:12]} Nh4 {[%emt 0:06:19]} 18. Rxa8 {[%emt 0:05:05]} Qxa8 {[%emt 0:00:01]} 19. Nb5 {[%emt 0:00:20]} Qc8 {[%emt 0:04:55]} 20. f3 {[%emt 0:03:22]} Qb8 {[%emt 0:08:29]} *

[Event "XX Gran Hotel Bali-A 2023"]
[Site "Benidorm"]
[Date "2023.12.07"]
[Round "8.13"]
[White "Garijo Perez, Hugo"]
[Black "Davtyan, David Arm."]
[Result "*"]
[ECO "B40"]
[WhiteElo "2222"]
[BlackElo "2362"]
[Annotator "RC"]
[PlyCount "59"]
[EventDate "2023.12.02"]
[EventType "swiss"]
[EventCountry "ESP"]
[SourceTitle "playchess.com"]
[Source "ChessBase"]
[SourceQuality "1"]
[TimeControl "5400+30"]

1. e4 {[%emt 0:00:02]} c5 {[%emt 0:07:35]} 2. Nf3 {[%emt 0:00:03]} e6 {[%emt 0:00:36]} 3. c4 {[%emt 0:00:30]} Nc6 {[%emt 0:00:50]} 4. Nc3 {[%emt 0:00:06]} Nd4 {[%emt 0:00:05]} 5. Nxd4 {[%emt 0:00:14]} cxd4 {[%emt 0:00:06]} 6. Ne2 {[%emt 0:00:08]} e5 {[%emt 0:01:30]} 7. d3 {[%emt 0:00:06]} Bb4+ {[%emt 0:05:07]} 8. Bd2 {[%emt 0:00:10]} Bxd2+ {[%emt 0:01:50]} 9. Qxd2 {[%emt 0:00:03]} d6 {[%emt 0:02:39]} 10. Ng3 {[%emt 0:00:48]} h5 {[%emt 0:10:05]} 11. h4 {[%emt 0:02:48]} Nf6 {[%emt 0:06:25]} 12. Be2 {[%emt 0:01:58]} g6 {[%emt 0:00:06]} 13. Qg5 {[%emt 0:05:33]} Nd7 {[%emt 0:10:37]} 14. Qxd8+ {[%emt 0:02:00]} Kxd8 {[%emt 0:03:01]} 15. O-O {[%emt 0:00:13]} Nc5 {[%emt 0:02:02]} 16. f4 {[%emt 0:00:55]} Bg4 {[%emt 0:02:56]} 17. fxe5 {[%emt 0:03:18]} Bxe2 {[%emt 0:02:47]} 18. Nxe2 {[%emt 0:01:52]} dxe5 {[%emt 0:00:08]} 19. Rxf7 {[%emt 0:00:38]} Nxd3 {[%emt 0:00:05]} 20. Raf1 {[%emt 0:00:24]} Ke8 {[%emt 0:42:00]} 21. Rxb7 {[%emt 0:01:40]} Rf8 {[%emt 0:00:07]} 22. Rxf8+ {[%emt 0:02:41]} Kxf8 {[%emt 0:00:02]} 23. Rb3 {[%emt 0:02:25]} Nc5 {[%emt 0:01:17]} 24. Rb5 {[%emt 0:00:08]} Rc8 {[%emt 0:00:09]} 25. b4 {[%emt 0:01:43]} Nd3 {[%emt 0:00:34]} 26. c5 {[%emt 0:02:40]} Rc7 {[%emt 0:08:15]} 27. a4 {[%emt 0:02:45]} a6 {[%emt 0:15:15]} 28. Rb8+ {[%emt 0:07:19]} Ke7 {[%emt 0:00:08]} 29. a5 {[%emt 0:00:07]} Kd7 {[%emt 0:01:31]} 30. Kh2 {[%emt 0:00:25]} *